bitfinex-derivatives/quotes_SOLF0:USTF0_20241217
["timestamp","ask_amount","ask_price","bid_price","bid_amount"]
[1734395670947,2.56,215.89,215.79,1.6074]
[1734395670948,2.56,215.89,215.79,3.9235]
[1734395671254,2.56,215.89,215.79,1.6074]
[1734395671445,2.56,215.89,215.77,2.3163]
[1734395671845,2.56,215.89,215.75,2.56]
[1734395672153,16.37584309,215.88,215.74,8.80297825]
[1734395672550,2.3164,215.78,215.74,8.80297825]
[1734395672749,2.54,215.81,215.74,8.80297825]
[1734395674449,2.3163,215.78,215.74,11.11957825]
[1734395675654,2.54,215.82,215.74,8.80297825]
[1734395675851,2.54,215.82,215.74,3.1779]
[1734395676056,2.54,215.82,215.7,5.64052192]
[1734395676260,2.3169,215.73,215.7,5.64052192]
[1734395677052,2.3167,215.74,215.7,5.64052192]
[1734395678849,2.3166,215.76,215.7,7.95762192]
[1734395679453,2.54,215.77,215.7,7.95762192]
[1734395679653,2.3167,215.75,215.7,7.95762192]
[1734395680353,10.2111416,215.82,215.7,5.64052192]
[1734395680555,2.54,215.81,215.71,10.2111416]
[1734395682558,2.3166,215.76,215.71,12.5281416]
[1734395682755,2.54,215.81,215.71,12.5281416]
[1734395683052,2.54,215.81,215.7,5.64052192]
[1734395683551,10.2111416,215.79,215.67,3.0335]
[1734395684162,10.2111416,215.79,215.69,2.3172]
[1734395684754,10.2111416,215.79,215.68,2.3174]
[1734395684951,10.2111416,215.79,215.67,3.0335]
[1734395685158,2.317,215.72,215.67,3.0335]
[1734395685360,2.317,215.72,215.68,2.3174]
[1734395686360,2.3171,215.71,215.67,11.0112124]
[1734395688857,2.54,215.79,215.68,10.2111416]
[1734395689063,2.54,215.79,215.71,10.2111416]
[1734395689758,2.54,215.81,215.71,10.2111416]
[1734395690158,2.3164,215.77,215.73,2.3168]
[1734395690658,2.3164,215.77,215.71,10.2111416]
[1734395691355,2.54,215.81,215.71,10.2111416]
[1734395691562,2.54,215.81,215.68,12.7511416]
[1734395692157,2.3164,215.78,215.7,2.3172]
[1734395692354,2.54,215.81,215.7,2.3172]
[1734395692659,2.3169,215.74,215.7,2.3172]
[1734395692860,2.54,215.81,215.7,2.3172]
[1734395693856,2.3168,215.74,215.7,2.3172]
[1734395694265,2.54,215.76,215.7,2.3172]
[1734395694453,2.54,215.76,215.67,3.0335]
[1734395694755,12.7511416,215.76,215.67,3.0335]
[1734395695461,12.7511416,215.76,215.62,10.2111416]
[1734395695858,2.3176,215.67,215.63,2.3178]
[1734395696162,2.3176,215.67,215.64,5.55105487]
[1734395696554,2.3176,215.67,215.64,7.86885487]
[1734395696954,2.3176,215.66,215.63,2.3179]
[1734395697561,2.3178,215.65,215.61,3.8968]
[1734395697761,12.7511416,215.7,215.56,68.11097014]
[1734395698158,12.7511416,215.7,215.58,5.54215092]
[1734395699166,2.3181,215.61,215.58,5.54215092]
[1734395700065,2.3181,215.61,215.57,5.537]
[1734395700066,2.54,215.65,215.57,3.2184]
[1734395700264,2.54,215.65,215.53,10.2111416]
[1734395700660,2.54,215.65,215.55,5.70259043]
[1734395702060,10.2111416,215.64,215.54,2.3189]
[1734395702264,10.2111416,215.64,215.52,3.8086]
[1734395702463,10.2111416,215.61,215.47,10.2111416]
[1734395702772,10.2111416,215.57,215.44,12.6711416]
[1734395702960,2.46,215.56,215.44,12.6711416]
[1734395703162,2.46,215.56,215.45,2.3199]
[1734395703163,2.3194,215.5,215.45,2.3199]
[1734395703663,2.46,215.56,215.44,12.6711416]
[1734395703868,2.46,215.56,215.47,15.65144718]
[1734395704271,2.46,215.56,215.51,2.3191]
[1734395704663,4.7788,215.56,215.51,2.3191]
[1734395704968,2.46,215.56,215.48,1.5574]
[1734395705267,2.46,215.56,215.42,10.2111416]
[1734395705669,2.3194,215.5,215.44,2.3199]
[1734395705861,2.46,215.51,215.46,1.6046]
[1734395706064,2.46,215.51,215.4,1.6287]
[1734395706262,2.46,215.51,215.4,4.11663]
[1734395706459,2.46,215.51,215.43,5.51958489]
[1734395706974,10.2111416,215.48,215.4,0.16763]
[1734395707580,10.2111416,215.45,215.33,3.0405]
[1734395707772,2.46,215.44,215.33,3.0405]
[1734395708171,2.46,215.44,215.33,1.5553]
[1734395708369,3.9622,215.44,215.27,18.85598487]
[1734395708672,16.39598487,215.41,215.26,4.5205]
[1734395709170,16.39598487,215.41,215.26,6.8424]
[1734395709374,16.39598487,215.41,215.27,5.46847374]
[1734395709564,2.3207,215.37,215.29,2.3215]
[1734395709770,2.46,215.4,215.27,21.86445861]
[1734395709963,2.46,215.4,215.28,2.46]
[1734395710163,2.46,215.4,215.32,2.3212]
[1734395710362,2.46,215.4,215.28,2.46]
[1734395710865,2.3214,215.31,215.27,5.46847374]
[1734395711274,2.3214,215.31,215.26,4.5205]
[1734395711567,2.3214,215.31,215.26,3.0353]
[1734395711764,2.3214,215.31,215.26,8.52754846]
[1734395712374,2.46,215.33,215.26,5.3572]
[1734395712676,2.46,215.33,215.26,3.0353]
[1734395712974,2.3216,215.29,215.26,3.0353]
[1734395713565,2.3216,215.29,215.24,2.3221]
[1734395713775,2.3216,215.29,215.24,7.81602089]
[1734395715571,2.46,215.33,215.24,5.49392089]
[1734395716071,2.3213,215.32,215.25,2.3219]
[1734395716273,2.46,215.33,215.24,5.49392089]
[1734395716465,2.46,215.33,215.21,3.1917]
[1734395716970,2.3218,215.27,215.22,2.3222]
[1734395717173,18.85598487,215.33,215.21,3.1917]
[1734395717764,2.3219,215.26,215.21,3.1917]
[1734395718171,2.46,215.28,215.17,2.46]
[1734395718379,2.46,215.28,215.18,2.3227]
[1734395718566,2.46,215.28,215.13,4.6501]
[1734395718766,2.46,215.28,215.13,7.1101]
[1734395719171,2.46,215.28,215.13,4.6501]
[1734395719376,2.46,215.27,215.15,16.39598487]
[1734395719577,2.46,215.27,215.17,5.45118556]
[1734395719976,2.322,215.25,215.17,5.45118556]
[1734395720773,2.46,215.27,215.17,5.45118556]
[1734395720978,2.46,215.27,215.23,2.3222]
[1734395721479,1.6182,215.36,215.23,2.3222]
[1734395721480,4.7814,215.31,215.23,2.3222]
[1734395721674,1.6182,215.36,215.17,5.45118556]
[1734395721675,2.46,215.32,215.21,2.46]
[1734395722074,2.3219,215.26,215.17,5.45118556]
[1734395722373,2.46,215.27,215.17,5.45118556]
[1734395722573,2.46,215.26,215.17,5.45118556]
[1734395723174,2.3223,215.23,215.17,7.77398556]
[1734395723477,2.46,215.26,215.17,5.45118556]
[1734395723674,16.39598487,215.34,215.17,5.45118556]
[1734395723882,16.39598487,215.34,215.19,16.39598487]
[1734395723883,18.85598487,215.34,215.19,16.39598487]
[1734395724179,18.85598487,215.34,215.13,4.6501]
[1734395724180,2.3222,215.24,215.13,2.3232]
[1734395724373,2.46,215.23,215.13,5.47627796]
[1734395724885,2.3228,215.18,215.14,2.3231]
[1734395725376,2.46,215.23,215.12,2.3234]
[1734395725377,2.3227,215.19,215.12,2.3234]
[1734395725683,16.39598487,215.25,215.12,2.3234]
[1734395725880,4.0962,215.24,215.12,2.3234]
[1734395726181,2.3229,215.17,215.12,2.3234]
[1734395726782,4.7827,215.19,215.1,5.56091258]
[1734395727686,2.3225,215.21,215.1,5.56091258]
[1734395727883,2.46,215.22,215.18,2.3227]
[1734395728283,2.46,215.24,215.12,2.46]
[1734395728891,2.46,215.24,215.21,2.3224]
[1734395729186,2.46,215.24,215.12,2.46]
[1734395729690,2.46,215.24,215.15,2.323]
[1734395729887,2.46,215.24,215.12,2.46]
[1734395730292,4.7821,215.24,215.2,2.3225]
[1734395730892,16.39598487,215.29,215.12,2.46]
[1734395731086,17.92718487,215.33,215.14,16.39598487]
[1734395731282,2.48,215.3,215.14,16.39598487]
[1734395731592,2.3216,215.29,215.15,0.85381046]
[1734395731787,2.3216,215.29,215.14,16.39598487]
[1734395732093,2.3216,215.29,215.24,2.3221]
[1734395732287,2.48,215.3,215.19,2.48]
[1734395733391,2.3219,215.26,215.22,2.3223]
[1734395733889,2.48,215.3,215.19,2.48]
[1734395734092,2.3216,215.29,215.24,2.322]
[1734395734388,2.3216,215.29,215.2,1.5216]
[1734395734592,5.53646061,215.32,215.2,1.5216]
[1734395734593,2.48,215.33,215.2,1.5216]
[1734395734791,2.48,215.33,215.21,3.1735]
[1734395735190,2.3214,215.32,215.27,2.3217]
[1734395735390,2.48,215.33,215.27,2.3217]
[1734395735586,16.39598487,215.38,215.21,3.1735]
[1734395735786,16.39598487,215.38,215.32,2.3212]
[1734395735787,2.48,215.36,215.32,2.3212]
[1734395736591,2.48,215.36,215.31,2.3214]
[1734395736894,4.8009,215.36,215.31,2.3214]
[1734395737288,2.48,215.36,215.31,2.3214]
[1734395737492,2.321,215.35,215.31,2.3214]
[1734395737687,2.321,215.35,215.27,2.48]
[1734395737688,2.48,215.36,215.21,3.1735]
[1734395737892,2.48,215.36,215.24,2.48]
[1734395738696,16.39598487,215.34,215.24,2.48]
[1734395738887,16.39598487,215.34,215.21,3.1735]
[1734395739093,2.3219,215.27,215.22,2.3222]
[1734395739993,2.3219,215.26,215.22,2.3222]
[1734395740391,2.48,215.29,215.24,2.3221]
[1734395740597,2.3218,215.28,215.24,2.3221]
[1734395742794,2.3218,215.27,215.24,2.3221]
[1734395743092,2.3218,215.27,215.21,1.5647]
[1734395743305,2.3218,215.27,215.23,2.3222]
[1734395743798,2.3219,215.26,215.22,2.3223]
[1734395744995,2.48,215.29,215.21,1.5647]
[1734395745201,2.48,215.33,215.21,4.0447]
[1734395745403,2.3215,215.31,215.24,2.3221]
[1734395745594,2.48,215.33,215.21,4.0447]
[1734395745994,2.3213,215.32,215.21,14.29917329]
[1734395747101,2.3213,215.32,215.29,2.3216]
[1734395747293,4.8011,215.34,215.29,2.3216]
[1734395747499,10.25447329,215.38,215.33,2.3211]
[1734395747692,2.48,215.38,215.27,10.25447329]
[1734395747897,2.48,215.38,215.27,11.83827329]
[1734395748297,2.48,215.4,215.27,11.83827329]
[1734395748496,2.3206,215.38,215.27,11.83827329]
[1734395748999,2.48,215.4,215.27,11.83827329]
[1734395749201,10.25447329,215.38,215.27,1.5838]
[1734395749396,10.25447329,215.35,215.22,2.48]
[1734395749597,10.25447329,215.35,215.28,2.3216]
[1734395749598,2.3212,215.33,215.28,2.3216]
[1734395749802,12.73447329,215.35,215.28,2.3216]
[1734395750001,2.48,215.35,215.28,2.3216]
[1734395750499,2.48,215.35,215.3,2.3215]
[1734395750801,2.48,215.39,215.27,2.48]
[1734395750994,2.3207,215.38,215.27,2.48]
[1734395751502,2.3207,215.38,215.33,2.3211]
[1734395753100,2.48,215.39,215.33,2.3211]
[1734395754705,2.48,215.39,215.32,2.3212]
[1734395755003,2.48,215.39,215.27,2.48]
[1734395755402,251.89676711,215.52,215.31,16.40780313]
[1734395755605,251.89676711,215.52,215.32,7.2021]
[1734395755606,1.5742,215.51,215.32,7.2021]
[1734395755807,5.57461403,215.5,215.35,16.40780313]
[1734395756002,2.48,215.5,215.35,16.40780313]
[1734395756398,2.48,215.5,215.39,16.40780313]
[1734395756709,2.48,215.5,215.4,2.48]
[1734395757303,2.48,215.5,215.41,2.3203]
[1734395757601,2.48,215.5,215.36,2.48]
[1734395757809,4.7994,215.5,215.43,2.3201]
[1734395758003,2.48,215.5,215.36,2.48]
[1734395758308,2.3199,215.45,215.4,2.3204]
[1734395759008,16.40780313,215.49,215.36,2.48]
[1734395759201,17.89830313,215.49,215.33,2.48]
[1734395759403,3.0137,215.48,215.33,2.48]
[1734395759608,16.40780313,215.45,215.32,4.7221]
[1734395759803,2.48,215.44,215.32,4.7221]
[1734395760609,2.48,215.44,215.32,3.2198]
[1734395761010,2.48,215.44,215.32,5.5411]
[1734395761612,2.3206,215.39,215.32,5.5411]
[1734395761811,4.7606,215.39,215.32,5.5411]
[1734395762012,2.3208,215.37,215.32,2.3213]
[1734395762411,2.44,215.39,215.26,5.5084]
[1734395762611,2.44,215.39,215.27,5.46207917]
[1734395762812,2.44,215.39,215.26,3.0684]
[1734395762813,16.40780313,215.37,215.26,3.0684]
[1734395763006,16.40780313,215.37,215.21,2.44]
[1734395763213,16.40780313,215.33,215.21,2.44]
[1734395763416,2.44,215.32,215.23,2.3222]
[1734395764010,2.3217,215.28,215.21,2.3224]
[1734395764217,2.44,215.32,215.18,2.44]
[1734395765118,2.44,215.32,215.2,5.53156802]
[1734395765320,4.7613,215.32,215.23,2.3222]
[1734395765620,2.44,215.32,215.2,5.53156802]
[1734395766016,2.44,215.32,215.24,2.322]
[1734395766313,2.44,215.32,215.2,5.53156802]
[1734395766618,4.7614,215.31,215.2,5.53156802]
[1734395766812,2.44,215.31,215.2,5.53156802]
[1734395768716,2.3217,215.28,215.2,7.85406802]
[1734395768916,2.44,215.31,215.19,4.6762]
[1734395769111,2.44,215.31,215.19,3.179]
[1734395769313,2.3221,215.24,215.19,3.179]
[1734395769519,2.44,215.31,215.19,3.179]
[1734395770113,16.40780313,215.29,215.12,16.40780313]
[1734395770512,2.3224,215.22,215.15,2.323]
[1734395770717,4.7624,215.22,215.15,2.323]
[1734395770915,2.44,215.22,215.16,2.3229]
[1734395771318,2.44,215.22,215.12,16.40780313]
[1734395772224,2.44,215.22,215.15,5.68370851]
[1734395772426,2.44,215.27,215.15,8.12370851]
[1734395772621,4.7617,215.28,215.16,16.40780313]
[1734395772821,2.44,215.29,215.16,16.40780313]
[1734395773423,2.322,215.25,215.19,2.3226]
[1734395773815,2.44,215.29,215.16,16.40780313]
[1734395774015,2.3219,215.26,215.2,2.3225]
[1734395774315,2.44,215.29,215.16,16.40780313]
[1734395774516,2.44,215.29,215.15,8.12370851]
[1734395774715,2.322,215.26,215.15,8.12370851]
[1734395775423,2.44,215.29,215.19,2.3226]
[1734395775424,2.322,215.25,215.19,2.3226]
[1734395776123,2.44,215.29,215.15,8.12370851]
[1734395777022,2.44,215.29,215.17,2.3228]
[1734395777217,2.44,215.29,215.15,8.12370851]
[1734395778216,18.84780313,215.29,215.12,16.40780313]
[1734395778422,2.33240113,215.28,215.1,5.4771]
[1734395778630,0.69140113,215.27,215.1,5.4771]
[1734395778822,3.1367,215.27,215.1,5.4771]
[1734395779021,3.1367,215.27,215.13,2.3233]
[1734395779221,3.1367,215.27,215.1,5.4771]
[1734395779417,2.3231,215.15,215.1,5.3607]
[1734395780030,2.44,215.17,215.13,2.3233]
[1734395780326,16.40780313,215.25,215.1,3.0371]
[1734395780525,2.3222,215.24,215.18,2.3228]
[1734395780923,2.44,215.25,215.14,2.44]
[1734395781220,1.641,215.28,215.16,16.40780313]
[1734395781221,2.44,215.27,215.16,16.40780313]
[1734395782228,5.4894241,215.3,215.16,16.40780313]
[1734395782425,2.44,215.29,215.16,16.40780313]
[1734395782725,2.44,215.29,215.22,2.3223]
[1734395782928,16.40780313,215.33,215.19,2.44]
[1734395783124,2.44,215.32,215.2,3.1366]
[1734395783318,7.98683916,215.32,215.2,3.1366]
[1734395783522,2.3216,215.29,215.22,2.3223]
[1734395783721,7.98683916,215.32,215.2,3.1366]
[1734395784121,7.98683916,215.32,215.21,2.3224]
[1734395784324,7.98683916,215.32,215.2,3.1366]
[1734395784722,7.98683916,215.32,215.12,16.40780313]
[1734395784927,16.40780313,215.29,215.13,1.5644]
[1734395785125,1.5451,215.28,215.13,1.5644]
[1734395785320,2.44,215.27,215.15,2.3231]
[1734395785522,2.44,215.27,215.13,1.5644]
[1734395786023,2.44,215.27,215.17,2.3228]
[1734395786223,2.44,215.27,215.13,1.5644]
[1734395786925,2.44,215.27,215.16,2.323]
[1734395787328,2.44,215.27,215.13,1.5644]
[1734395788122,2.322,215.25,215.19,2.3226]
[1734395788523,2.44,215.27,215.19,2.3226]
[1734395789426,2.3222,215.24,215.19,2.3226]
[1734395789625,2.44,215.27,215.13,1.5644]
[1734395790324,2.44,215.27,215.21,2.3224]
[1734395790523,2.44,215.27,215.13,1.5644]
[1734395790524,2.44,215.28,215.17,2.44]
[1734395791434,2.3218,215.27,215.17,2.44]
[1734395791627,2.44,215.28,215.17,2.44]
[1734395792426,2.3222,215.24,215.18,2.3227]
[1734395793125,2.3222,215.24,215.15,2.44]
[1734395793332,2.44,215.23,215.11,16.40780313]
[1734395793633,2.44,215.25,215.13,1.5028]
[1734395793931,2.44,215.24,215.19,2.3226]
[1734395794329,2.44,215.24,215.17,2.3228]
[1734395794831,18.84780313,215.24,215.13,1.5028]
[1734395795034,2.44,215.24,215.13,1.5028]
[1734395796436,4.762,215.25,215.16,2.3229]
[1734395796633,2.322,215.25,215.13,1.5028]
[1734395796839,2.44,215.27,215.13,1.5028]
[1734395797135,16.40780313,215.49,215.19,16.40780313]
[1734395797339,16.40780313,215.49,215.13,1.5028]
[1734395797340,16.40780313,215.39,215.23,16.40780313]
[1734395797640,16.40780313,215.39,215.24,1.6149]
[1734395798238,5.69677029,215.37,215.24,1.6149]
[1734395798439,2.3217,215.28,215.24,1.6149]
[1734395798838,2.44,215.3,215.2,11.22201641]
[1734395798839,2.3218,215.27,215.2,11.22201641]
[1734395799044,2.3218,215.27,215.2,8.89951641]
[1734395799242,2.44,215.3,215.2,8.89951641]
[1734395799545,2.3217,215.29,215.23,2.3221]
[1734395800750,16.40780313,215.35,215.2,10.51441641]
[1734395800751,2.3215,215.31,215.2,10.51441641]
[1734395800951,4.7615,215.31,215.2,10.51441641]
[1734395801247,4.7614,215.31,215.2,10.51441641]
[1734395801647,2.44,215.31,215.2,10.51441641]
[1734395801858,2.3218,215.28,215.22,2.3223]
[1734395802248,2.44,215.31,215.2,10.51441641]
[1734395802459,2.44,215.31,215.2,1.6149]
[1734395803050,18.84780313,215.31,215.2,1.6149]
[1734395803350,0.69158251,215.3,215.11,16.40780313]
[1734395803556,16.40780313,215.27,215.11,17.98980313]
[1734395803855,2.3228,215.18,215.11,1.582]
[1734395804866,2.3228,215.18,215.13,2.3233]
[1734395805052,2.44,215.2,215.11,1.582]
[1734395805253,2.3229,215.17,215.11,1.582]
[1734395805853,2.3231,215.15,215.09,5.67463637]
[1734395806053,2.44,215.15,215.07,58.03267354]
[1734395806253,2.44,215.15,215.08,5.54684557]
[1734395806848,2.3233,215.14,215.08,5.54684557]
[1734395807157,16.40780313,215.1,214.96,3.1898]
[1734395807348,2.44,215.09,214.92,16.40780313]
[1734395807550,16.40780313,215.06,214.92,16.40780313]
[1734395808154,16.40780313,215.06,214.95,5.68184875]
[1734395808355,16.40780313,215.06,214.91,1.5216]
[1734395808859,16.40780313,215.02,214.91,1.5216]
[1734395809058,2.44,215.01,214.86,2.44]
[1734395809255,2.44,215.01,214.86,2.3262]
[1734395809256,2.3253,214.95,214.86,2.3262]
[1734395809456,2.3253,214.95,214.81,1.5216]
[1734395809457,2.44,214.94,214.81,1.5216]
[1734395809657,2.44,214.93,214.81,1.5216]
[1734395809957,2.44,214.93,214.83,5.56965742]
[1734395810462,2.3256,214.92,214.83,7.89615742]
[1734395811357,18.84780313,214.93,214.81,3.8483]
[1734395811758,18.84780313,214.93,214.81,9.30740182]
[1734395812355,18.84780313,214.93,214.81,3.8483]
[1734395812555,2.3261,214.88,214.81,1.5216]
[1734395812767,2.44,214.87,214.81,1.5216]
[1734395813363,2.3258,214.9,214.81,3.8483]
[1734395813556,16.40780313,214.93,214.81,1.5216]
[1734395813756,2.44,214.92,214.81,1.5216]
[1734395813963,2.44,214.91,214.81,1.5216]
[1734395814364,2.44,214.9,214.81,1.5216]
[1734395814657,2.44,214.89,214.81,1.5216]
[1734395814965,2.44,214.88,214.81,1.5216]
[1734395815563,2.44,214.88,214.82,2.3266]
[1734395815759,2.3257,214.91,214.81,1.5216]
[1734395815957,5.47957847,214.94,214.81,1.5216]
[1734395816168,2.3256,214.92,214.84,2.3264]
[1734395816365,2.44,214.91,214.84,2.3264]
[1734395816661,2.44,214.93,214.84,16.40780313]
[1734395816862,16.40780313,215.02,214.84,16.40780313]
[1734395817066,2.44,215.0,214.84,16.40780313]
[1734395817265,16.40780313,215.02,214.88,16.40780313]
[1734395817463,2.3249,214.99,214.91,2.3256]
[1734395818062,7.88941873,215.0,214.89,1.575]
[1734395818661,2.325,214.98,214.89,3.9009]
[1734395818866,7.88941873,215.0,214.89,1.575]
[1734395819362,2.325,214.98,214.9,2.3258]
[1734395819768,7.88941873,215.0,214.89,1.575]
[1734395820671,2.3252,214.96,214.89,3.9009]
[1734395820868,2.46,214.95,214.89,3.9009]
[1734395821368,2.46,214.97,214.91,2.3256]
[1734395821568,2.46,214.97,214.89,1.575]
[1734395821968,3.1982,215.05,214.89,4.035]
[1734395822158,2.46,215.04,214.89,4.035]
[1734395822559,2.3246,215.01,214.89,4.035]
[1734395822762,16.40780313,215.02,214.89,1.575]
[1734395823169,16.40780313,215.02,214.86,2.3261]
[1734395823766,2.3253,214.95,214.88,2.326]
[1734395823966,2.46,214.94,214.85,1.6388]
[1734395824371,2.46,214.98,214.85,1.6388]
[1734395825466,2.3251,214.97,214.85,1.6388]
[1734395825666,2.46,214.98,214.85,1.6388]
[1734395826070,18.86780313,214.98,214.86,2.3262]
[1734395826768,2.3255,214.93,214.86,2.3262]
[1734395826968,4.7855,214.93,214.86,2.3262]
[1734395827174,2.46,214.98,214.87,2.46]
[1734395828169,2.46,214.98,214.92,2.3256]
[1734395828370,2.46,214.98,214.87,2.46]
[1734395828971,2.46,214.98,214.93,2.3254]
[1734395830077,2.46,214.98,214.94,2.3253]
[1734395830669,2.3258,214.9,214.84,2.3264]
[1734395830870,2.3258,214.9,214.83,1.527]
[1734395830871,4.7858,214.9,214.83,1.527]
[1734395831068,2.46,214.9,214.83,1.527]
[1734395831568,2.46,214.9,214.78,4.0228]
[1734395831968,2.46,214.9,214.78,1.5628]
[1734395832176,2.46,214.9,214.78,4.0228]
[1734395832371,16.40780313,214.89,214.78,1.5628]
[1734395832574,16.40780313,214.89,214.76,1.537]
[1734395832767,16.40780313,214.85,214.73,1.6116]
[1734395832968,2.3268,214.81,214.74,2.3275]
[1734395833275,2.46,214.84,214.73,1.6116]
[1734395833469,16.40780313,214.81,214.72,0.23599]
[1734395833674,2.3271,214.78,214.72,0.23599]
[1734395833877,2.46,214.77,214.72,0.23599]
[1734395834474,2.46,214.76,214.73,2.3276]
[1734395834674,16.40780313,214.85,214.73,2.3276]
[1734395834973,2.46,214.84,214.73,2.3276]
[1734395835275,16.40780313,214.89,214.72,16.64379313]
[1734395835476,2.46,214.88,214.76,16.40780313]
[1734395835672,2.46,214.88,214.8,16.40780313]
[1734395835869,2.46,214.88,214.85,2.3263]
[1734395838178,2.46,214.88,214.86,2.3262]
[1734395838376,2.46,214.92,214.8,16.40780313]
[1734395839776,2.3255,214.93,214.8,18.86780313]
[1734395840074,5.64966211,214.94,214.77,3.015]
[1734395840075,16.40780313,214.9,214.77,3.015]
[1734395840884,2.46,214.89,214.77,3.015]
[1734395841579,3.1216,214.92,214.77,3.015]
[1734395841779,2.46,214.88,214.83,2.3265]
[1734395842277,2.46,214.88,214.77,3.015]
[1734395842673,22.05746524,214.94,214.77,3.015]
[1734395842878,2.46,214.93,214.77,3.015]
[1734395843077,16.40780313,214.9,214.77,3.015]
[1734395843281,16.40780313,214.9,214.78,2.327]
[1734395843483,16.40780313,214.9,214.77,3.015]
[1734395843681,2.3262,214.87,214.77,3.015]
[1734395843882,2.46,214.86,214.77,3.015]
[1734395844384,2.46,214.86,214.84,2.3264]
[1734395844975,2.46,214.86,214.77,2.3272]
[1734395844976,2.3265,214.84,214.77,2.3272]
[1734395845183,2.46,214.86,214.73,1.5865]
[1734395845681,2.3266,214.83,214.77,2.3272]
[1734395845874,2.46,214.88,214.74,16.40780313]
[1734395846482,2.46,214.88,214.78,16.40780313]
[1734395847283,2.46,214.89,214.78,16.40780313]
[1734395847479,4.7859,214.89,214.78,16.40780313]
[1734395848285,2.46,214.89,214.77,2.46]
[1734395848480,2.46,214.89,214.73,17.99430313]
[1734395848678,2.3264,214.85,214.73,20.45430313]
[1734395848888,2.46,214.84,214.73,20.45430313]
[1734395849093,2.46,214.84,214.75,2.3273]
[1734395849287,2.46,214.84,214.73,1.5865]
[1734395850391,2.46,214.84,214.72,0.23599]
[1734395850780,16.40780313,214.82,214.72,0.23599]
[1734395850983,2.3271,214.78,214.72,2.56379]
[1734395851181,2.62,214.77,214.72,2.56379]
[1734395851782,2.62,214.78,214.75,2.3274]
[1734395852088,2.62,214.78,214.7,3.0963]
[1734395852284,2.62,214.8,214.77,2.3271]
[1734395852485,2.62,214.8,214.7,3.0963]
[1734395852486,2.62,214.82,214.7,3.0963]
[1734395852792,2.62,214.82,214.71,2.62]
[1734395852989,1.5853,214.85,214.71,2.62]
[1734395853181,2.62,214.83,214.72,1.5464]
[1734395853389,2.62,214.84,214.73,16.40780313]
[1734395853584,2.62,214.91,214.77,16.40780313]
[1734395853789,2.62,214.91,214.77,19.02780313]
[1734395854091,2.62,214.9,214.77,19.02780313]
[1734395854385,2.3259,214.89,214.82,2.3266]
[1734395854585,2.3259,214.89,214.77,19.02780313]
[1734395854791,2.62,214.9,214.84,2.3264]
[1734395855395,2.62,214.91,214.84,2.3264]
[1734395856095,2.3259,214.89,214.84,2.3264]
[1734395856295,2.62,214.91,214.82,2.3266]
[1734395856697,73.67330164,214.93,214.81,16.40780313]
[1734395856897,17.91710313,214.99,214.82,5.6935]
[1734395857097,1.5455,215.01,214.85,16.40780313]
[1734395857298,2.62,215.0,214.85,16.40780313]
[1734395858098,2.62,215.0,214.92,2.3255]
[1734395859401,2.3248,214.99,214.92,2.3255]
[1734395860302,2.3248,214.99,214.93,2.3255]
[1734395860502,2.62,215.0,214.93,2.3255]
[1734395860699,2.62,215.0,214.89,16.40780313]
[1734395861004,2.62,215.03,214.89,16.40780313]
[1734395861202,2.62,215.03,214.96,2.3251]